{"text_format":"1","workbook":"xlsx","n_sheets":23,"sheets":["Титульный","ПП 2018","ПП 2020-2024","ПП 2018-2024","Расчет_объемы ","ПМ оборудования 2018","ПМ оборудования 2020","ПМ оборудования 2021","ПМ оборудования 2022","ПМ оборудования 2023","ПМ оборудования 2024","расход ээ","расчет ээ на общепр.нужды","Хар-ка сетей","вода на собст.нужды","Реализация услуг ","План мероприятий 2018 год","План мероприятий 2019 год","План мероприятий 2020 год","План мероприятий 2021 год ","План мероприятий 2022 год","План мероприятий 2023","План мероприятий 2024"],"not_rendered":{"charts":0,"images":6,"macros":0,"external_links":6,"defined_names":74,"comments":0,"pivot_tables":0},"unopened":[],"bounds":{"document_bytes":16777216,"sheet_cells":100000,"rows_first":2000,"rows_last":500,"rows_between":2000,"halvings":0,"cell_chars":16384,"cell_head_chars":4096},"cells_cut":0,"cells_raw":0,"read":"whole","date_system":"1900"}

{"sheet":"Титульный","index":0,"n_rows":32,"n_cols":12,"rows_kept":32,"cut":false,"hidden":false,"merged":[[16,9,17,13],[15,1,15,14],[21,1,21,14],[20,1,20,14],[31,1,31,2],[24,1,24,14],[25,1,25,14],[31,6,31,10],[29,1,29,2],[29,6,29,10]]}
[]
[null,"Утверждаю :",null,null,null,null,null,null,null,null,null,"Утверждаю :"]
[null,"Руководитель предприятия",null,null,null,null,null,null,null,null,null,"Комитет по тарифам и ценовой политике"]
[null,null,null,null,null,null,null,null,null,null,null,"Ленинградской области"]
[null,null,null,null,null,null,null,null,null,null,null,"(191311, Санкт-Петербург, ул.Смольного, д.3)"]
[]
[null,"\"             \"",null,null,"2019 год",null,null,null,null,null,null,"приказ ЛенРТК от _______________________ № _______"]
[null,"мп"]
[]
[]
[]
[]
[]
[]
[]
[null,"Производственная программа в сфере водоснабжения ___________2020-2024 годы____________________"]
[]
[]
[]
[]
[]
[null,"  (наименование организации,ее местонахождение)"]
[]
[]
[]
[null,"(адрес фактического местонахождения)"]
[]
[]
[]
[null,"сфера",null,null,null,null,"холодное водоснабжение"]
[]
[null,"вид товара",null,null,null,null,"транспортировка воды"]

{"sheet":"ПП 2018","index":1,"n_rows":22,"n_cols":18,"rows_kept":22,"cut":false,"hidden":false,"merged":[[8,16,8,17],[5,2,9,2],[5,3,5,17],[6,3,7,5],[6,6,7,8],[6,9,6,17],[7,12,7,14],[7,15,7,17],[8,10,8,11],[7,9,7,11],[8,3,9,3],[8,4,8,5],[8,6,9,6],[8,7,8,8],[8,9,9,9],[5,1,9,1],[5,0,9,0],[8,12,9,12],[8,13,8,14],[8,15,9,15]]}
["Внимание! Таблица заполняется, но распечатке не подлежит. "]
[null,null,null,null,null,null,null,null,null,null,null,null,null,null,null,null,null,"Таблица 1.1.1"]
[]
["Раздел 1. Обоснование обеспечения фактического объема  транспортировки воды  за  2018 год"]
[]
["№ п/п","Показатели","Ед. изм.","Отчетный период (2018 год)"]
[null,null,null,"предусмотрено в тарифе",null,null,"всего по организации",null,null,"в том числе по ЦСВ"]
[null,null,null,null,null,null,null,null,null,"МО 1",null,null,"МО 2",null,null,"МО 3"]
[null,null,null,"Всего в год","в том числе",null,"Всего в год","в том числе",null,"Всего в год","в том числе",null,"Всего в год","в том числе",null,"Всего в год","в том числе"]
[null,null,null,null,"с 01.01.2018 по 30.06.2018","с 01.07.2018 по 31.12.2018",null,{"$f":"E10","v":"с 01.01.2018 по 30.06.2018"},{"$f":"F10","v":"с 01.07.2018 по 31.12.2018"},null,{"$f":"H10","v":"с 01.01.2018 по 30.06.2018"},{"$f":"I10","v":"с 01.07.2018 по 31.12.2018"},null,{"$f":"K10","v":"с 01.01.2018 по 30.06.2018"},{"$f":"L10","v":"с 01.07.2018 по 31.12.2018"},null,{"$f":"N10","v":"с 01.01.2018 по 30.06.2018"},{"$f":"O10","v":"с 01.07.2018 по 31.12.2018"}]
[1,2,3,4,5,6,7,8,9,10,11,12,13,14,15,16,17,18]
["1","Принято воды для передачи             (транспортировки)","тыс. м3"]
["2","Потери транспортируемой воды","тыс. м3"]
["3","Объем транспортируемой воды всего, ","тыс. м3"]
["3.1.","Объем транспортируемой воды на собственные нужды","тыс. м3"]
["3.2.","Товарная  вода (транспортировка)","тыс. м3"]
["3.2.1","Гарантирующая организация","тыс. м3"]
["3.2.2.","Иные потребители","тыс. м3"]
["4.","Расход электроэнергии – всего, в т.ч.:","тыс. кВт.ч"]
["4..1","Расход электроэнергии на технологические нужды","тыс. кВт.ч"]
["4.1.1.","Удельный расход электроэнергии на технологические нужды","кВтч/м3"]
["4.2.","Расход электроэнергии на общепроизводственные нужды","тыс. кВт.ч"]

{"sheet":"ПП 2020-2024","index":2,"n_rows":22,"n_cols":63,"rows_kept":22,"cut":false,"hidden":false,"merged":[[8,61,8,62],[8,46,8,47],[8,48,9,48],[8,49,8,50],[5,51,5,62],[6,51,7,53],[6,54,6,62],[7,54,7,56],[7,57,7,59],[7,60,7,62],[8,51,9,51],[8,52,8,53],[8,54,9,54],[8,55,8,56],[8,57,9,57],[8,58,8,59],[8,60,9,60],[8,39,9,39],[8,40,8,41],[8,42,9,42],[8,43,8,44],[8,45,9,45],[5,39,5,50],[6,39,7,41],[6,42,6,50],[7,42,7,44],[7,45,7,47],[7,48,7,50],[8,13,8,14],[5,2,9,2],[5,1,9,1],[5,0,9,0],[5,3,5,14],[6,3,7,5],[6,6,6,14],[7,6,7,8],[7,9,7,11],[7,12,7,14],[8,3,9,3],[8,4,8,5],[8,6,9,6],[8,7,8,8],[8,9,9,9],[8,10,8,11],[8,19,8,20],[8,21,9,21],[5,15,5,26],[6,15,7,17],[6,18,6,26],[7,18,7,20],[7,21,7,23],[7,24,7,26],[8,12,9,12],[5,27,5,38],[6,27,7,29],[6,30,6,38],[7,30,7,32],[7,33,7,35],[7,36,7,38],[8,34,8,35],[8,36,9,36],[8,37,8,38],[8,27,9,27],[8,28,8,29],[8,30,9,30],[8,15,9,15],[8,16,8,17],[8,18,9,18],[8,31,8,32],[8,33,9,33],[8,22,8,23],[8,24,9,24],[8,25,8,26]]}
["Внимание! Таблица заполняется, но распечатке не подлежит. "]
[null,null,null,null,null,null,null,null,null,null,null,null,null,null,null,null,null,null,null,null,null,null,null,null,null,null,null,null,null,null,null,null,null,null,null,null,null,null,null,null,null,null,null,null,null,null,null,null,null,null,null,null,null,null,null,null,null,null,null,null,null,null,"Таблица 1.1.2"]
[]
["Раздел 1. Обоснование обеспечения прогнозируемого объема транспортировки воды в 2020-2024 годы с разбивкой по периодам "]
[]
["№ п/п","Показатели","Ед. изм.","Плановый период (2020 год)",null,null,null,null,null,null,null,null,null,null,null,"Плановый период (2021 год)",null,null,null,null,null,null,null,null,null,null,null,"Плановый период (2022 год)",null,null,null,null,null,null,null,null,null,null,null,"Плановый период (2023 год)",null,null,null,null,null,null,null,null,null,null,null,"Плановый период (2024 год)"]
[null,null,null,"всего по организации",null,null,"в том числе по ЦСВ",null,null,null,null,null,null,null,null,"всего по организации",null,null,"в том числе по ЦСВ",null,null,null,null,null,null,null,null,"всего по организации",null,null,"в том числе по ЦСВ",null,null,null,null,null,null,null,null,"всего по организации",null,null,"в том числе по ЦСВ",null,null,null,null,null,null,null,null,"всего по организации",null,null,"в том числе по ЦСВ"]
[null,null,null,null,null,null,"МО 1",null,null,"МО 2",null,null,"МО 3",null,null,null,null,null,"МО 1",null,null,"МО 2",null,null,"МО 3",null,null,null,null,null,"МО 1",null,null,"МО 2",null,null,"МО 3",null,null,null,null,null,"МО 1",null,null,"МО 2",null,null,"МО 3",null,null,null,null,null,"МО 1",null,null,"МО 2",null,null,"МО 3"]
[null,null,null,"Всего в год","в том числе",null,"Всего в год","в том числе",null,"Всего в год","в том числе",null,"Всего в год","в том числе",null,"Всего в год","в том числе",null,"Всего в год","в том числе",null,"Всего в год","в том числе",null,"Всего в год","в том числе",null,"Всего в год","в том числе",null,"Всего в год","в том числе",null,"Всего в год","в том числе",null,"Всего в год","в том числе",null,"Всего в год","в том числе",null,"Всего в год","в том числе",null,"Всего в год","в том числе",null,"Всего в год","в том числе",null,"Всего в год","в том числе",null,"Всего в год","в том числе",null,"Всего в год","в том числе",null,"Всего в год","в том числе"]
[null,null,null,null,"с 01.01.2020 по 30.06.2020","с 01.07.2020 по 31.12.2020",null,{"$f":"E10","v":"с 01.01.2020 по 30.06.2020"},{"$f":"F10","v":"с 01.07.2020 по 31.12.2020"},null,{"$f":"H10","v":"с 01.01.2020 по 30.06.2020"},{"$f":"I10","v":"с 01.07.2020 по 31.12.2020"},null,{"$f":"K10","v":"с 01.01.2020 по 30.06.2020"},{"$f":"L10","v":"с 01.07.2020 по 31.12.2020"},null,"с 01.01.2021 по 30.06.2021","с 01.07.2021 по 31.12.2021",null,{"$f":"Q10","v":"с 01.01.2021 по 30.06.2021"},{"$f":"R10","v":"с 01.07.2021 по 31.12.2021"},null,{"$f":"T10","v":"с 01.01.2021 по 30.06.2021"},{"$f":"U10","v":"с 01.07.2021 по 31.12.2021"},null,{"$f":"W10","v":"с 01.01.2021 по 30.06.2021"},{"$f":"X10","v":"с 01.07.2021 по 31.12.2021"},null,"с 01.01.2022 по 30.06.2022","с 01.07.2022 по 31.12.2022",null,{"$f":"AC10","v":"с 01.01.2022 по 30.06.2022"},{"$f":"AD10","v":"с 01.07.2022 по 31.12.2022"},null,{"$f":"AF10","v":"с 01.01.2022 по 30.06.2022"},{"$f":"AG10","v":"с 01.07.2022 по 31.12.2022"},null,{"$f":"AI10","v":"с 01.01.2022 по 30.06.2022"},{"$f":"AJ10","v":"с 01.07.2022 по 31.12.2022"},null,"с 01.01.2023 по 30.06.2023","с 01.07.2023 по 31.12.2023",null,{"$f":"AO10","v":"с 01.01.2023 по 30.06.2023"},{"$f":"AP10","v":"с 01.07.2023 по 31.12.2023"},null,{"$f":"AR10","v":"с 01.01.2023 по 30.06.2023"},{"$f":"AS10","v":"с 01.07.2023 по 31.12.2023"},null,{"$f":"AU10","v":"с 01.01.2023 по 30.06.2023"},{"$f":"AV10","v":"с 01.07.2023 по 31.12.2023"},null,"с 01.01.2024 по 30.06.2024","с 01.07.2024 по 31.12.2024",null,{"$f":"BA10","v":"с 01.01.2024 по 30.06.2024"},{"$f":"BB10","v":"с 01.07.2024 по 31.12.2024"},null,{"$f":"BD10","v":"с 01.01.2024 по 30.06.2024"},{"$f":"BE10","v":"с 01.07.2024 по 31.12.2024"},null,{"$f":"BG10","v":"с 01.01.2024 по 30.06.2024"},{"$f":"BH10","v":"с 01.07.2024 по 31.12.2024"}]
[1,2,3,4,5,6,7,8,9,10,11,12,13,14,15,16,17,18,19,20,21,22,23,24,25,26,27,28,29,30,31,32,33,34,35,36,37,38,39,40,41,42,43,44,45,46,47,48,49,50,51,52,53,54,55,56,57,58,59,60,61,62,63]
["1","Принято воды для передачи             (транспортировки)","тыс. м3"]
["2","Потери транспортируемой воды","тыс. м3"]
["3","Объем транспортируемой воды всего, ","тыс. м3"]
["3.1.","Объем транспортируемой воды на собственные нужды","тыс. м3"]
["3.2.","Товарная  вода (транспортировка)","тыс. м3"]
["3.2.1","Гарантирующая организация","тыс. м3"]
["3.2.2.","Иные потребители","тыс. м3"]
["4.","Расход электроэнергии – всего, в т.ч.:","тыс. кВт.ч"]
["4..1","Расход электроэнергии на технологические нужды","тыс. кВт.ч"]
["4.1.1.","Удельный расход электроэнергии на технологические нужды","кВтч/м3"]
["4.2.","Расход электроэнергии на общепроизводственные нужды","тыс. кВт.ч"]

{"sheet":"ПП 2018-2024","index":3,"n_rows":30,"n_cols":19,"rows_kept":30,"cut":false,"hidden":false,"merged":[[5,15,5,16],[5,17,5,18],[5,0,6,0],[5,1,6,1],[5,2,6,2],[23,3,23,5],[26,3,26,5],[5,11,5,12],[5,13,5,14],[29,1,29,4],[5,3,5,5],[5,6,5,8],[5,9,5,10]]}
[null,null,null,null,null,null,null,null,null,null,null,null,null,null,null,null,null,null,"Приложение 1"]
[null,null,null,null,null,null,null,null,null,null,null,null,null,null,null,null,null,null,"Таблица 1.1."]
["Раздел 1. Обоснование обеспечения прогнозируемого объема транспортировки воды"]
[]
[]
["№ п/п","Показатели","Ед. изм.","Отчетный период (2018 год)",null,null,"Базовый  период (2019 год)",null,null,"Плановый период (2020 год)",null,"Плановый период (2021 год)",null,"Плановый период (2022 год)",null,"Плановый период (2023 год)",null,"Плановый период (2024 год)"]
[null,null,null,"Предусмотрено в тарифе ЛенРТК","Данные организации","Принято ЛенРТК","Предусмотрено в тарифе ЛенРТК","Данные организации","Принято ЛенРТК","Данные организации","Принято ЛенРТК","Данные организации","Принято ЛенРТК","Данные организации","Принято ЛенРТК","Данные организации","Принято ЛенРТК","Данные организации","Принято ЛенРТК"]
[1,2,3,4,5,6,7,8,9,10,11,12,13,14,15,16,17,18,19]
["1","Принято воды для передачи             (транспортировки)","тыс. м3"]
["2","Потери транспортируемой воды","тыс. м3"]
["3","Объем транспортируемой воды всего, ","тыс. м3"]
["3.1.","Объем транспортируемой воды на собственные нужды","тыс. м3"]
["3.2.","Товарная  вода (транспортировка)","тыс. м3"]
["3.2.1","Гарантирующая организация","тыс. м3"]
["3.2.2.","Иные потребители","тыс. м3"]
["4.","Расход электроэнергии – всего, в т.ч.:","тыс. кВт.ч"]
["4.1.","Расход электроэнергии на технологические нужды","тыс. кВт.ч"]
["4.1.1.","Удельный расход электроэнергии на технологические нужды","кВтч/м3"]
["4.2.","Расход электроэнергии на общепроизводственные нужды","тыс. кВт.ч"]
[]
["М.П."]
[]
[]
[null,"Должность руководителя, подпись",null,"Фамилия, имя, отчество"]
[]
[null,null,"                             "]
[null,"Должность исполнителя, подпись",null,"Фамилия, имя, отчество"]
[]
[]
[null,"контактный тел. с кодом города, контактный E-mail"]

{"sheet":"Расчет_объемы ","index":4,"n_rows":27,"n_cols":8,"rows_kept":27,"cut":false,"hidden":false,"merged":[[0,6,0,7],[1,6,1,7],[2,1,2,7],[4,3,4,7],[11,3,11,5]]}
[null,null,null,null,null,null,"Приложение 1"]
[null,null,null,null,null,null,"Таблица 1.1.1"]
[null,"Определение объема отпуска воды, принятых сточных вод, используемых для расчета тарифов в сфере водоснабжения и водоотведения"]
[]
[null,"1.","Водоснабжение"]
[null,null,null,"2015 *","2016 *","2017 *","2018 *","2020**"]
[null,null,"Расчет согласно п. 5 главы II Методических указаний  по фактическим данным Организации                                                                                                                                          Объем отпускаемой воды (товарной), всего                   "]
[null,null,"Объем, отпускаемый воды новым абонентам, за вычетом абонентов, водоснабжение которых прекращено"]
[null,null,"Изменение объема отпускаемой воды, связанное с пересмотром нормативов"]
[null,null,"План Организации (согласно производственной программы, калькуляции)"]
[null,null,"Принято ЛенРТК"]
[null,"2.","Водоотведение"]
[null,null,"Расчет согласно п. 5 главы II Методических указаний  по фактическим данным Организации                                                                                                                              Объем принятых сточных вод (товарных), всего"]
[null,null,"Объем, принятых сточных вод от новых абонентов, за вычетом абонентов, водоотведение которых прекращено"]
[null,null,"Изменение объема принятых сточных вод, связанное с пересмотром нормативов"]
[null,null,"План Организации (согласно производственной программы, калькуляции)"]
[null,null,"Принято ЛенРТК"]
[]
[null,null,"*2015, 2016, 2017, 2018 года фактические данные Организации"]
[null,null,"** Согласно пунктам 4, 5 и 8 Методических указаний объем воды, отпускаемой (планируемой к отпуску) абонентам, определяется отдельно в отношении питьевой воды, технической воды, а также объем принятых сточных вод от абонентов по формулам:\n"]
[]
[]
[null,null,"где:"]
[null,null," - объем воды, отпускаемой абонентам (планируемой к отпуску) в году i, тыс. куб. м;"]
[null,null,"- расчетный объем воды, отпускаемой новым абонентам, подключившимся к централизованной системе водоснабжения в году i, за вычетом потребления воды абонентами, водоснабжение которых прекращено (планируется прекратить), тыс. куб. м. Указанная величина может принимать, в том числе, отрицательные значения;"]
[null,null,"- планируемое в году i изменение (снижение) объема воды, отпускаемой гарантирующей организацией абонентам по отношению к году i-1, связанное с изменением нормативов потребления воды, тыс. куб. м. Указанная величина может принимать как положительные, так и отрицательные значения;"]
[null,null,"- темп изменения (снижения) потребления воды. В случае, если данные об объеме отпуска воды в предыдущие годы недоступны, темп изменения (снижения) потребления воды рассчитывается без учета этих лет. Темп изменения (снижения) потребления воды не должен превышать 5 процентов в год."]

{"sheet":"ПМ оборудования 2018","index":5,"n_rows":35,"n_cols":15,"rows_kept":35,"cut":false,"hidden":false,"merged":[[4,3,4,14],[7,3,8,3],[7,4,8,4],[7,5,8,5],[7,6,8,6],[7,7,8,7],[7,8,7,10],[10,4,10,14],[31,6,31,8],[34,6,34,8],[7,11,8,11],[7,12,8,12],[7,13,8,13],[7,14,8,14],[16,4,16,14],[22,4,22,14]]}
[null,null,null,null,null,null,null,null,null,null,null,null,null,null,"Приложение 1"]
[null,null,null,null,null,null,null,null,null,null,null,null,null,null,"Таблица 1.2."]
[]
[]
[null,null,null,"Перечень насосного оборудования по объектам водоснабжения (факт 2018 года)"]
[]
[]
[null,null,null,"№ п/п","Наименование оборудования и его местоположение","Марка насоса","Количество насосов находящихся в работе, шт","Количество насосов, находящихся в резерве, шт","Характеристика оборудования",null,null,"Время работы оборудования в год, час","КПД насосов, %","КПД электродвигателя (по паспорту), %","Расход электроэнергии на технологические нужды, т.кВт.ч"]
[null,null,null,null,null,null,null,null,"Производительность, м3/час","Напор, м","Мощность электродвигателя, кВт"]
[null,null,null,1,2,3,4,5,6,7,8,9,10,11,12]
[null,null,null,null,"Муниципальный район: МО 1"]
[null,null,null,1,"Транспортировка воды (насосные, повысительные станции)","х","х","х"]
[null,null,null,"1.1"]
[null,null,null,"1.2"]
[null,null,null,"…","…"]
[null,null,null,"0","Итого по МО","х",null,null,"х","х","х","х","х","х"]
[null,null,null,null,"Муниципальный район: МО 2"]
[null,null,null,2,"Транспортировка воды (насосные, повысительные станции)","х","х","х"]
[null,null,null,"2.1"]
[null,null,null,"2.2"]
[null,null,null,"…","…"]
[null,null,null,null,"Итого по МО","х",null,null,"х","х","х","х","х","х"]
[null,null,null,null,"ИТОГО   ПО   ОРГАНИЗАЦИИ:"]
[null,null,null,null,"Транспортировка воды ","х",null,null,"х","х","х","х","х","х"]
[]
[null,null,null,"Примечание: Данные, предусмотренные организацией в графе 12, должны быть подтверждены расчетом"]
[]
[]
[]
[null,null,null,"М.П."]
[]
[null,null,null,null,"Должность руководителя, подпись",null,"Фамилия, имя, отчество"]
[]
[null,null,null,null,null,"                             "]
[null,null,null,null,"Должность исполнителя, подпись",null,"Фамилия, имя, отчество"]

{"sheet":"ПМ оборудования 2020","index":6,"n_rows":35,"n_cols":16,"rows_kept":35,"cut":false,"hidden":false,"merged":[[34,6,34,9],[16,4,16,14],[22,4,22,14],[7,14,8,14],[7,15,8,15],[10,4,10,15],[31,6,31,9],[4,3,4,15],[7,3,8,3],[7,4,8,4],[7,5,8,5],[7,6,8,6],[7,7,8,7],[7,8,8,8],[7,9,7,11],[7,12,8,12],[7,13,8,13]]}
[null,null,null,null,null,null,null,null,null,null,null,null,null,null,null,"Приложение 1"]
[null,null,null,null,null,null,null,null,null,null,null,null,null,null,null,"Таблица 1.3.1"]
[]
[]
[null,null,null,"Перечень насосного оборудования по объектам водоснабжения (план 2020 года)"]
[]
[]
[null,null,null,"№ п/п","Наименование оборудования и его местоположение","Марка насоса","Количество насосов находящихся в работе, шт","Количество насосов, находящихся в резерве, шт","Объем воды в год, т.м3","Характеристика оборудования",null,null,"Время работы оборудования в год, час","КПД насосов, %","КПД электродвигателя (по паспорту), %","Расход электроэнергии на технологические нужды, т.кВт.ч"]
[null,null,null,null,null,null,null,null,null,"Производительность, м3/час","Напор, м","Мощность электродвигателя, кВт"]
[null,null,null,1,2,3,4,5,6,7,8,9,10,11,12,13]
[null,null,null,null,"Муниципальный район: МО 1"]
[null,null,null,1,"Транспортировка воды (насосные, повысительные станции)","х","х","х"]
[null,null,null,"1.1"]
[null,null,null,"1.2"]
[null,null,null,"…","…"]
[null,null,null,"0","Итого по МО","х",null,null,"х","х","х","х","х","х"]
[null,null,null,null,"Муниципальный район: МО 2"]
[null,null,null,2,"Транспортировка воды (насосные, повысительные станции)","х","х","х"]
[null,null,null,"2.1"]
[null,null,null,"2.2"]
[null,null,null,"…","…"]
[null,null,null,null,"Итого по МО","х",null,null,"х","х","х","х","х","х"]
[null,null,null,null,"ИТОГО   ПО   ОРГАНИЗАЦИИ:"]
[null,null,null,null,"Транспортировка воды ","х",null,null,"х","х","х","х","х","х"]
[]
[null,null,null,"Примечание: Данные, предусмотренные организацией в графе 13, должны быть подтверждены расчетами"]
[]
[]
[]
[null,null,null,"М.П."]
[]
[null,null,null,null,"Должность руководителя, подпись",null,"Фамилия, имя, отчество"]
[]
[null,null,null,null,null,"                             "]
[null,null,null,null,"Должность исполнителя, подпись",null,"Фамилия, имя, отчество"]

{"sheet":"ПМ оборудования 2021","index":7,"n_rows":35,"n_cols":16,"rows_kept":35,"cut":false,"hidden":false,"merged":[[4,3,4,15],[7,3,8,3],[7,4,8,4],[7,5,8,5],[7,6,8,6],[7,7,8,7],[7,8,8,8],[7,9,7,11],[7,12,8,12],[7,13,8,13],[34,6,34,9],[7,14,8,14],[7,15,8,15],[10,4,10,15],[16,4,16,14],[22,4,22,14],[31,6,31,9]]}
[null,null,null,null,null,null,null,null,null,null,null,null,null,null,null,"Приложение 1"]
[null,null,null,null,null,null,null,null,null,null,null,null,null,null,null,"Таблица 1.3.2"]
[]
[]
[null,null,null,"Перечень насосного оборудования по объектам водоснабжения (план 2021 года)"]
[]
[]
[null,null,null,"№ п/п","Наименование оборудования и его местоположение","Марка насоса","Количество насосов находящихся в работе, шт","Количество насосов, находящихся в резерве, шт","Объем воды в год, т.м3","Характеристика оборудования",null,null,"Время работы оборудования в год, час","КПД насосов, %","КПД электродвигателя (по паспорту), %","Расход электроэнергии на технологические нужды, т.кВт.ч"]
[null,null,null,null,null,null,null,null,null,"Производительность, м3/час","Напор, м","Мощность электродвигателя, кВт"]
[null,null,null,1,2,3,4,5,6,7,8,9,10,11,12,13]
[null,null,null,null,"Муниципальный район: МО 1"]
[null,null,null,1,"Транспортировка воды (насосные, повысительные станции)","х","х","х"]
[null,null,null,"1.1"]
[null,null,null,"1.2"]
[null,null,null,"…","…"]
[null,null,null,"0","Итого по МО","х",null,null,"х","х","х","х","х","х"]
[null,null,null,null,"Муниципальный район: МО 2"]
[null,null,null,2,"Транспортировка воды (насосные, повысительные станции)","х","х","х"]
[null,null,null,"2.1"]
[null,null,null,"2.2"]
[null,null,null,"…","…"]
[null,null,null,null,"Итого по МО","х",null,null,"х","х","х","х","х","х"]
[null,null,null,null,"ИТОГО   ПО   ОРГАНИЗАЦИИ:"]
[null,null,null,null,"Транспортировка воды ","х",null,null,"х","х","х","х","х","х"]
[]
[null,null,null,"Примечание: Данные, предусмотренные организацией в графе 13, должны быть подтверждены расчетами"]
[]
[]
[]
[null,null,null,"М.П."]
[]
[null,null,null,null,"Должность руководителя, подпись",null,"Фамилия, имя, отчество"]
[]
[null,null,null,null,null,"                             "]
[null,null,null,null,"Должность исполнителя, подпись",null,"Фамилия, имя, отчество"]

{"sheet":"ПМ оборудования 2022","index":8,"n_rows":35,"n_cols":16,"rows_kept":35,"cut":false,"hidden":false,"merged":[[4,3,4,15],[7,3,8,3],[7,4,8,4],[7,5,8,5],[7,6,8,6],[7,7,8,7],[7,8,8,8],[7,9,7,11],[7,12,8,12],[7,13,8,13],[34,6,34,9],[7,14,8,14],[7,15,8,15],[10,4,10,15],[16,4,16,14],[22,4,22,14],[31,6,31,9]]}
[null,null,null,null,null,null,null,null,null,null,null,null,null,null,null,"Приложение 1"]
[null,null,null,null,null,null,null,null,null,null,null,null,null,null,null,"Таблица 1.3.3"]
[]
[]
[null,null,null,"Перечень насосного оборудования по объектам водоснабжения (план 2022 года)"]
[]
[]
[null,null,null,"№ п/п","Наименование оборудования и его местоположение","Марка насоса","Количество насосов находящихся в работе, шт","Количество насосов, находящихся в резерве, шт","Объем воды в год, т.м3","Характеристика оборудования",null,null,"Время работы оборудования в год, час","КПД насосов, %","КПД электродвигателя (по паспорту), %","Расход электроэнергии на технологические нужды, т.кВт.ч"]
[null,null,null,null,null,null,null,null,null,"Производительность, м3/час","Напор, м","Мощность электродвигателя, кВт"]
[null,null,null,1,2,3,4,5,6,7,8,9,10,11,12,13]
[null,null,null,null,"Муниципальный район: МО 1"]
[null,null,null,1,"Транспортировка воды (насосные, повысительные станции)","х","х","х"]
[null,null,null,"1.1"]
[null,null,null,"1.2"]
[null,null,null,"…","…"]
[null,null,null,"0","Итого по МО","х",null,null,"х","х","х","х","х","х"]
[null,null,null,null,"Муниципальный район: МО 2"]
[null,null,null,2,"Транспортировка воды (насосные, повысительные станции)","х","х","х"]
[null,null,null,"2.1"]
[null,null,null,"2.2"]
[null,null,null,"…","…"]
[null,null,null,null,"Итого по МО","х",null,null,"х","х","х","х","х","х"]
[null,null,null,null,"ИТОГО   ПО   ОРГАНИЗАЦИИ:"]
[null,null,null,null,"Транспортировка воды ","х",null,null,"х","х","х","х","х","х"]
[]
[null,null,null,"Примечание: Данные, предусмотренные организацией в графе 13, должны быть подтверждены расчетами"]
[]
[]
[]
[null,null,null,"М.П."]
[]
[null,null,null,null,"Должность руководителя, подпись",null,"Фамилия, имя, отчество"]
[]
[null,null,null,null,null,"                             "]
[null,null,null,null,"Должность исполнителя, подпись",null,"Фамилия, имя, отчество"]

{"sheet":"ПМ оборудования 2023","index":9,"n_rows":35,"n_cols":16,"rows_kept":35,"cut":false,"hidden":false,"merged":[[4,3,4,15],[7,3,8,3],[7,4,8,4],[7,5,8,5],[7,6,8,6],[7,7,8,7],[7,8,8,8],[7,9,7,11],[7,12,8,12],[7,13,8,13],[34,6,34,9],[7,14,8,14],[7,15,8,15],[10,4,10,15],[16,4,16,14],[22,4,22,14],[31,6,31,9]]}
[null,null,null,null,null,null,null,null,null,null,null,null,null,null,null,"Приложение 1"]
[null,null,null,null,null,null,null,null,null,null,null,null,null,null,null,"Таблица 1.3.4"]
[]
[]
[null,null,null,"Перечень насосного оборудования по объектам водоснабжения (план 2023 года)"]
[]
[]
[null,null,null,"№ п/п","Наименование оборудования и его местоположение","Марка насоса","Количество насосов находящихся в работе, шт","Количество насосов, находящихся в резерве, шт","Объем воды в год, т.м3","Характеристика оборудования",null,null,"Время работы оборудования в год, час","КПД насосов, %","КПД электродвигателя (по паспорту), %","Расход электроэнергии на технологические нужды, т.кВт.ч"]
[null,null,null,null,null,null,null,null,null,"Производительность, м3/час","Напор, м","Мощность электродвигателя, кВт"]
[null,null,null,1,2,3,4,5,6,7,8,9,10,11,12,13]
[null,null,null,null,"Муниципальный район: МО 1"]
[null,null,null,1,"Транспортировка воды (насосные, повысительные станции)","х","х","х"]
[null,null,null,"1.1"]
[null,null,null,"1.2"]
[null,null,null,"…","…"]
[null,null,null,"0","Итого по МО","х",null,null,"х","х","х","х","х","х"]
[null,null,null,null,"Муниципальный район: МО 2"]
[null,null,null,2,"Транспортировка воды (насосные, повысительные станции)","х","х","х"]
[null,null,null,"2.1"]
[null,null,null,"2.2"]
[null,null,null,"…","…"]
[null,null,null,null,"Итого по МО","х",null,null,"х","х","х","х","х","х"]
[null,null,null,null,"ИТОГО   ПО   ОРГАНИЗАЦИИ:"]
[null,null,null,null,"Транспортировка воды ","х",null,null,"х","х","х","х","х","х"]
[]
[null,null,null,"Примечание: Данные, предусмотренные организацией в графе 13, должны быть подтверждены расчетами"]
[]
[]
[]
[null,null,null,"М.П."]
[]
[null,null,null,null,"Должность руководителя, подпись",null,"Фамилия, имя, отчество"]
[]
[null,null,null,null,null,"                             "]
[null,null,null,null,"Должность исполнителя, подпись",null,"Фамилия, имя, отчество"]

{"sheet":"ПМ оборудования 2024","index":10,"n_rows":35,"n_cols":16,"rows_kept":35,"cut":false,"hidden":false,"merged":[[4,3,4,15],[7,3,8,3],[7,4,8,4],[7,5,8,5],[7,6,8,6],[7,7,8,7],[7,8,8,8],[7,9,7,11],[7,12,8,12],[7,13,8,13],[34,6,34,9],[7,14,8,14],[7,15,8,15],[10,4,10,15],[16,4,16,14],[22,4,22,14],[31,6,31,9]]}
[null,null,null,null,null,null,null,null,null,null,null,null,null,null,null,"Приложение 1"]
[null,null,null,null,null,null,null,null,null,null,null,null,null,null,null,"Таблица 1.3.5"]
[]
[]
[null,null,null,"Перечень насосного оборудования по объектам водоснабжения (план 2024 года)"]
[]
[]
[null,null,null,"№ п/п","Наименование оборудования и его местоположение","Марка насоса","Количество насосов находящихся в работе, шт","Количество насосов, находящихся в резерве, шт","Объем воды в год, т.м3","Характеристика оборудования",null,null,"Время работы оборудования в год, час","КПД насосов, %","КПД электродвигателя (по паспорту), %","Расход электроэнергии на технологические нужды, т.кВт.ч"]
[null,null,null,null,null,null,null,null,null,"Производительность, м3/час","Напор, м","Мощность электродвигателя, кВт"]
[null,null,null,1,2,3,4,5,6,7,8,9,10,11,12,13]
[null,null,null,null,"Муниципальный район: МО 1"]
[null,null,null,1,"Транспортировка воды (насосные, повысительные станции)","х","х","х"]
[null,null,null,"1.1"]
[null,null,null,"1.2"]
[null,null,null,"…","…"]
[null,null,null,"0","Итого по МО","х",null,null,"х","х","х","х","х","х"]
[null,null,null,null,"Муниципальный район: МО 2"]
[null,null,null,2,"Транспортировка воды (насосные, повысительные станции)","х","х","х"]
[null,null,null,"2.1"]
[null,null,null,"2.2"]
[null,null,null,"…","…"]
[null,null,null,null,"Итого по МО","х",null,null,"х","х","х","х","х","х"]
[null,null,null,null,"ИТОГО   ПО   ОРГАНИЗАЦИИ:"]
[null,null,null,null,"Транспортировка воды ","х",null,null,"х","х","х","х","х","х"]
[]
[null,null,null,"Примечание: Данные, предусмотренные организацией в графе 13, должны быть подтверждены расчетами"]
[]
[]
[]
[null,null,null,"М.П."]
[]
[null,null,null,null,"Должность руководителя, подпись",null,"Фамилия, имя, отчество"]
[]
[null,null,null,null,null,"                             "]
[null,null,null,null,"Должность исполнителя, подпись",null,"Фамилия, имя, отчество"]

{"sheet":"расход ээ","index":11,"n_rows":25,"n_cols":18,"rows_kept":25,"cut":false,"hidden":false,"merged":[[24,4,24,5],[4,1,4,7],[5,1,5,7],[6,1,6,7],[7,1,8,1],[7,2,8,2],[7,3,8,3],[7,4,7,5],[7,6,7,7],[21,4,21,5],[7,8,7,9],[3,1,3,17],[7,14,7,15],[7,16,7,17],[7,10,7,11],[7,12,7,13]]}
[null,null,null,null,null,null,null,null,null,null,null,null,null,null,null,null,null,"Приложение 1"]
[null,null,null,null,null,null,null,null,null,null,null,null,null,null,null,null,null,"Таблица 1.4."]
[]
[null,"Расчёт электрической энергии на производство и реализацию услуг водоснабжения (транспортировка воды)"]
[]
[]
[]
[null,"№ п/п","Наименование направления расхода электрической энергии","Ед.изм.","2018 год",null,"2019 год",null,"2020 год",null,"2021 год",null,"2022 год",null,"2023 год",null,"2024 год"]
[null,null,null,null,"Предусмотрено в тарифе","Факт по данным организации","Предусмотрено в тарифе","Ожидаемое исполнение по данным организации","План организации","Принято ЛенРТК","План организации","Принято ЛенРТК","План организации","Принято ЛенРТК","План организации","Принято ЛенРТК","План организации","Принято ЛенРТК"]
[null,1,2,3,4,5,6,7,8,9,10,11,12,13,14,15,16,17]
[null,"1","Всего по организации (стр2+стр3)","тыс кВт.ч"]
[null,"2","На технологические нужды - всего, в том числе:","тыс кВт.ч"]
[null,"2.1","Транспортировка воды","тыс кВт.ч"]
[null,"3","На общепроизводственные нужды - всего, в том числе:","тыс кВт.ч"]
[null,"3.1","На электроотопление зданий и сооружений","тыс кВт.ч"]
[null,"3.2","На освещение зданий и сооружений","тыс кВт.ч"]
[null,"3.3","На работу вспомогательного оборудования","тыс кВт.ч"]
[]
[]
[]
[null,"М.П."]
[null,null,"Должность руководителя, подпись",null,"Фамилия, имя, отчество"]
[]
[null,null,null,"                             "]
[null,null,"Должность исполнителя, подпись",null,"Фамилия, имя, отчество"]

{"sheet":"расчет ээ на общепр.нужды","index":12,"n_rows":33,"n_cols":12,"rows_kept":33,"cut":false,"hidden":false,"merged":[[18,1,18,12],[29,8,29,9],[32,8,32,9]]}
[null,null,null,null,null,null,null,null,null,null,null,"Приложение 1"]
[null,null,null,null,null,null,null,null,null,null,null,"Таблица 1.5."]
[]
[]
[]
[]
[]
[null,null,null,null,null,"Расчет потребности в электрической энергии на общепроизводственные нужды "]
[]
[]
[]
[]
[]
[]
[]
[]
[]
[]
[null,"Заполняется организацией в произвольной форме с указанием  оборудования в соответствии с таблицей 1.4. Кроме того, необоходимо предоставить расчет расхода электрической энергии, предусмотренного организацией по статьям \"Цеховые расходы\" и \"Общехозяйственные расходы\" (с указанием оборудования, его характеристик, формулы расчета)."]
[]
[]
[]
[]
[]
[]
[]
[]
[]
[null,null,null,null,null,"М.П."]
[null,null,null,null,null,null,"Должность руководителя, подпись",null,"Фамилия, имя, отчество"]
[]
[null,null,null,null,null,null,null,"                             "]
[null,null,null,null,null,null,"Должность исполнителя, подпись",null,"Фамилия, имя, отчество"]

{"sheet":"Хар-ка сетей","index":13,"n_rows":31,"n_cols":8,"rows_kept":31,"cut":false,"hidden":false,"merged":[[24,1,24,2],[9,1,9,2],[27,3,27,5],[30,3,30,5],[22,0,22,2],[10,0,11,0],[10,1,15,1],[16,0,17,0],[16,1,21,1],[23,0,23,2],[3,0,3,7],[5,0,5,7],[6,0,7,0],[6,1,7,1],[6,2,7,2],[6,3,7,3],[6,4,6,7]]}
[null,null,null,null,null,null,null,"Приложение 1"]
[null,null,null,null,null,null,null,"Таблица 1.6."]
[]
["Характеристика водопроводных сетей"]
[]
[]
["№ п/п","Наименование",null,"Всего","в том числе по поселениям"]
[null,null,null,null,"наименование МО1","наименование МО2","наименование МО3","наименование МО4"]
[1,2,3,4,5,6,7,8]
[1,"Водопроводные сети",null,"х","х","х","х","х"]
["1.1","Протяженность сетей","Итого, км",{"$f":"SUM(D13:D16)","v":0},{"$f":"SUM(E13:E16)","v":0},{"$f":"SUM(F13:F16)","v":0},{"$f":"SUM(G13:G16)","v":0},{"$f":"SUM(H13:H16)","v":0}]
[null,null,"в том числе:","х","х","х","х","х"]
["1.1.1",null,"диаметр от 50мм до 250мм"]
["1.1.2",null,"диаметр от 250мм до 500мм"]
["1.1.3",null,"диаметр от 500мм до 1000мм"]
["1.1.4",null,"диаметр от 1000мм"]
["1.2","Протяженность сетей, нуждающихся в замене","Итого, км",{"$f":"SUM(D19:D22)","v":0},{"$f":"SUM(E19:E22)","v":0},{"$f":"SUM(F19:F22)","v":0},{"$f":"SUM(G19:G22)","v":0},{"$f":"SUM(H19:H22)","v":0}]
[null,null,"в том числе:","х","х","х","х","х"]
["1.2.1",null,"диаметр от 50мм до 250мм"]
["1.2.2",null,"диаметр от 250мм до 500мм"]
["1.2.3",null,"диаметр от 500мм до 1000мм"]
["1.2.4",null,"диаметр от 1000мм"]
["ВСЕГО водопроводных сетей,",null,null,{"$f":"D11","v":0},{"$f":"E11","v":0},{"$f":"F11","v":0},{"$f":"G11","v":0},{"$f":"H11","v":0}]
["в том числе нуждающихся в замене",null,null,{"$f":"D17","v":0},{"$f":"E17","v":0},{"$f":"F17","v":0},{"$f":"G17","v":0},{"$f":"H17","v":0}]
[]
[]
[]
[null,"Должность руководителя, подпись",null,"Фамилия, имя, отчество"]
[]
[null,null,"                             "]
[null,"Должность исполнителя, подпись",null,"Фамилия, имя, отчество"]

{"sheet":"вода на собст.нужды","index":14,"n_rows":25,"n_cols":16,"rows_kept":25,"cut":false,"hidden":false,"merged":[[4,0,4,15],[8,12,8,13],[8,14,8,15],[9,12,10,12],[9,13,10,13],[9,14,10,14],[9,15,10,15],[8,0,10,0],[8,1,10,1],[8,2,8,3],[8,4,8,5],[8,6,8,7],[9,2,10,2],[9,3,10,3],[9,4,10,4],[9,5,10,5],[9,6,10,6],[9,7,10,7],[21,1,21,2],[21,3,21,4],[24,1,24,2],[24,3,24,4],[8,8,8,9],[8,10,8,11],[9,8,10,8],[9,9,10,9],[9,10,10,10],[9,11,10,11]]}
[null,null,null,null,null,null,null,null,null,null,null,null,null,null,null,"Приложение1"]
[null,null,null,null,null,null,null,null,null,null,null,null,null,null,null,"Таблица 1.7."]
[]
[]
["Расчет (обоснование) расхода транспортируемой воды на нужды собственных подразделений (цехов)"]
[]
[]
[null,null,null,null,null,null,null,null,null,null,null,null,null,null,null,"(тыс.м3)"]
[" № п/п","Наименование показателя","2018 год",null,"2019 год",null,"2020 год",null,"2021 год",null,"2022 год",null,"2023 год",null,"2024 год"]
[null,null,"Предусмотрено в тарифе","Факт по данным организации","Предусмотрено в тарифе","Ожидаемое исполнение по данным организации","План организации","Принято ЛенРТК","План организации","Принято ЛенРТК","План организации","Принято ЛенРТК","План организации","Принято ЛенРТК","План организации","Принято ЛенРТК"]
[]
[1,2,3,4,5,6,7,8,9,10,11,12,13,14,15,16]
["1.","Расход транспортируемой воды на нужды собственных подразделений (цехов), всего:"]
[null,"в том числе:"]
["1.1."]
[" 1.2."]
[" 1.3."]
[]
[]
[]
["М.П."]
[null,"Должность руководителя, подпись",null,"Фамилия, имя, отчество"]
[]
[null,null,"                             "]
[null,"Должность исполнителя, подпись",null,"Фамилия, имя, отчество"]

{"sheet":"Реализация услуг ","index":15,"n_rows":62,"n_cols":19,"rows_kept":62,"cut":false,"hidden":false,"merged":[[2,1,2,10],[4,1,8,1],[4,2,8,2],[5,3,5,5],[5,6,5,8],[5,9,5,10],[6,3,8,3],[6,4,8,4],[6,5,8,5],[4,3,4,18],[5,15,5,16],[6,15,8,15],[6,16,8,16],[5,17,5,18],[6,17,8,17],[6,18,8,18],[58,3,58,5],[61,3,61,5],[6,6,8,6],[6,7,6,8],[6,9,8,9],[6,10,8,10],[7,7,8,7],[7,8,8,8],[5,11,5,12],[5,13,5,14],[6,11,8,11],[6,12,8,12],[6,13,8,13],[6,14,8,14]]}
[null,null,null,null,null,null,null,null,null,null,null,null,null,null,null,null,null,null,"Приложение 1"]
[null,null,null,null,null,null,null,null,null,null,null,null,null,null,null,null,null,null,"Таблица 1.8."]
[null,"Объёмы реализации услуги по потребителям "]
[]
[null,"Наименование потребителей","№ договора, дата","Объем отпуска (тыс.м3)"]
[null,null,null," факт 2018 год",null,null,"2019 год",null,null,"2020 год",null,"2021 год",null,"2022год",null,"2023 год",null,"2024 год"]
[null,null,null,"предусмотрено в тарифе","Данные предприятия","Принято ЛенРТК","предусмотрено в тарифе","ожидаемое",null,"План предприятия","Принято ЛенРТК","План предприятия","Принято ЛенРТК","План предприятия","Принято ЛенРТК","План предприятия","Принято ЛенРТК","План предприятия","Принято ЛенРТК"]
[null,null,null,null,null,null,null,"Данные предприятия","Принято ЛенРТК"]
[]
[null,1,2,3,4,null,6,7,8,9,10,11,12,13,14,15,16,17,18]
[null,null,null,null,null,null,"Муниципальный район:  (наименование  МО 1)"]
[null,"Всего, в том числе:"]
[null,"Управляющие компании, ТСЖ и др. (по населению)"]
[null,"Потребитель 1"]
[null,"Потребитель 2"]
[null,"…"]
[null,"Население"]
[null,"Бюджетные организации "]
[null,"Потребитель 1"]
[null,"Потребитель 2"]
[null,"…"]
[null,"Другие водоснабжающие организации"]
[null,"Потребитель 1"]
[null,"Потребитель 2"]
[null,"…"]
[null,"Иные потребители"]
[null,"Потребитель 1"]
[null,"Потребитель 2"]
[null,"…"]
[null,null,null,null,null,null,"Муниципальный район:  (наименование  МО 2)"]
[null,"Всего, в том числе:"]
[null,"Управляющие компании, ТСЖ и др. (по населению)"]
[null,"Потребитель 1"]
[null,"Потребитель 2"]
[null,"…"]
[null,"Население"]
[null,"Бюджетные организации "]
[null,"Потребитель 1"]
[null,"Потребитель 2"]
[null,"…"]
[null,"Другие водоснабжающие организации"]
[null,"Потребитель 1"]
[null,"Потребитель 2"]
[null,"…"]
[null,"Иные потребители"]
[null,"Потребитель 1"]
[null,"Потребитель 2"]
[null,"…"]
[null,null,null,null,null,null,"Добавить МО"]
[null,"Всего по предприятию: в т.ч."]
[null,"Управляющие компании, ТСЖ и др. (по населению)"]
[null,"Население"]
[null,"Бюджетные организации "]
[null,"Другие водоснабжающие организации"]
[null,"Иные потребители"]
[]
[]
[]
[null,"Должность руководителя, подпись",null,"Фамилия, имя, отчество"]
[]
[null,null,"                             "]
[null,"Должность исполнителя, подпись",null,"Фамилия, имя, отчество"]

{"sheet":"План мероприятий 2018 год","index":16,"n_rows":48,"n_cols":15,"rows_kept":48,"cut":false,"hidden":false,"merged":[[47,4,47,6],[19,1,19,14],[20,1,20,14],[24,1,24,4],[25,1,25,14],[29,1,29,4],[30,1,30,14],[34,1,34,4],[35,1,35,14],[39,1,39,4],[40,1,40,4],[44,4,44,6],[13,1,17,1],[13,2,17,2],[13,3,17,3],[11,1,11,14],[15,8,16,9],[15,10,16,11],[13,4,17,4],[13,14,17,14],[15,5,17,5],[15,6,17,6],[13,5,14,6],[13,7,17,7],[13,8,14,11],[13,12,17,12],[13,13,17,13],[0,11,0,12],[1,11,1,13],[4,11,4,12],[0,1,0,2],[1,1,1,3],[4,1,4,2]]}
[null,"Согласовано:",null,null,null,null,null,null,null,null,null,"Согласовано:*",null,null,"Приложение 2"]
[null,"Глава администрации МО",null,null,null,null,null,null,null,null,null,"Руководитель ",null,null,"Таблица 2.1"]
[]
[]
[null,"ФИО",null,"подпись",null,null,null,null,null,null,null,"ФИО",null,"подпись"]
[]
[null,"\"           \"","                                    2019 год",null,null,null,null,null,null,null,null,"\"           \"","                                    2016 год","2019 год"]
[null,null,null,null,null,null,null,null,null,null,"МП"]
[null,"МП"]
[]
[]
[null,"Выполнение  плана мероприятий по повышению эффективности деятельности и энергосбережению на 2018 год"]
[]
[null,"№ п/п","Наименование мероприятия","Инвентарный номер и адрес объекта","Стадии технологического процесса","Затраты на реализацию мероприятий (тыс.руб.без НДС)",null,"Источники финансирования","Объем работ в натуральных показателях",null,null,null,"Вид ремонта","Исполнитель работ (наименование организации, № и дата договора)","Примечание"]
[]
[null,null,null,null,null,"план","факт",null,"план",null,"факт"]
[]
[null,null,null,null,null,null,null,null,"Ед. изм.","Значение (количество)","Ед. изм.","Значение (количество)"]
[null,1,2,3,4,5,6,7,8,9,10,11,12,13,14]
[]
[null,"I раздел. Мероприятия по ремонту (капитальный ,текущий и др)"]
[null,"1.1","Мероприятие 1"]
[null,"1.2","Мероприятие 2"]
[null,"…","…"]
[null,"Итого по I разделу",null,null,null,null,null,"х","х","х","х","х","х","х","х"]
[null,"II раздел. Мероприятия по реконструкции "]
[null,"2.1","Мероприятие 1"]
[null,"2.2","Мероприятие 2"]
[null,"…","…"]
[null,"Итого по II разделу",null,null,null,null,null,"х","х","х","х","х","х","х","х"]
[null,"III раздел.  Иные мероприятия, направленные на совершенствование организации производства"]
[null,"3.1","Мероприятие 1"]
[null,"3.2","Мероприятие 2"]
[null,"…","…"]
[null,"Итого по III разделу",null,null,null,null,null,"х","х","х","х","х","х","х","х"]
[null,"IV раздел. Мероприятия по энергосбережению и повышению энергетической эффективности (в соответствии с утвержденной Программой энергосбережения и повышения энергоэффективности)"]
[null,"4.1","Мероприятие 1"]
[null,"4.2","Мероприятие 2"]
[null,"…","…"]
[null,"Итого по IV разделу",null,null,null,null,null,"х","х","х","х","х","х","х","х"]
[]
[]
[null," *  Согласуется руководителем Арендодателя в случае, если данное требование предусмотрено договорами аренды"]
[]
[null,null,"Должность руководителя, подпись",null,"Фамилия, имя, отчество"]
[]
[null,null,null,"                             "]
[null,null,"Должность исполнителя, подпись",null,"Фамилия, имя, отчество"]

{"sheet":"План мероприятий 2019 год","index":17,"n_rows":49,"n_cols":15,"rows_kept":49,"cut":false,"hidden":false,"merged":[[45,4,45,6],[48,4,48,6],[11,1,11,14],[31,1,31,14],[35,1,35,4],[36,1,36,14],[40,1,40,4],[41,1,41,4],[20,1,20,14],[21,1,21,14],[25,1,25,4],[26,1,26,14],[30,1,30,4],[14,13,18,13],[14,8,15,11],[14,4,18,4],[1,11,1,12],[14,14,18,14],[5,11,5,12],[14,12,18,12],[16,6,18,6],[16,8,17,9],[16,10,17,11],[2,11,2,13],[14,5,15,6],[14,7,18,7],[16,5,18,5],[1,1,1,2],[2,1,2,3],[5,1,5,2],[14,1,18,1],[14,2,18,2],[14,3,18,3]]}
[null,null,null,null,null,null,null,null,null,null,null,null,null,null,"Приложение 2"]
[null,"Согласовано:",null,null,null,null,null,null,null,null,null,"Согласовано:*",null,null,"Таблица 2.2"]
[null,"Глава администрации МО",null,null,null,null,null,null,null,null,null,"Руководитель "]
[]
[]
[null,"ФИО",null,"подпись",null,null,null,null,null,null,null,"ФИО",null,"подпись"]
[]
[null,"\"           \"","                                    2019 год",null,null,null,null,null,null,null,null,"\"           \"","                                    2016 год","2019 год"]
[null,null,null,null,null,null,null,null,null,null,"МП"]
[null,"МП"]
[]
[null,"Ожидаемое выполнение плана мероприятий по повышению эффективности деятельности и энергосбережению на 2019 год"]
[]
[]
[null,"№ п/п","Наименование мероприятия","Инвентарный номер и адрес объекта","Стадии технологического процесса","Затраты на реализацию мероприятий (тыс.руб.без НДС)",null,"Источники финансирования","Объем работ в натуральных показателях",null,null,null,"Вид ремонта","Исполнитель работ (наименование организации, № и дата договора)","Примечание"]
[]
[null,null,null,null,null,"план","ожидаемое",null,"план",null,"ожидаемое"]
[]
[null,null,null,null,null,null,null,null,"Ед. изм.","Значение (количество)","Ед. изм.","Значение (количество)"]
[null,1,2,3,4,5,6,7,8,9,10,11,12,13,14]
[]
[null,"I раздел. Мероприятия по ремонту (капитальный ,текущий и др)"]
[null,"1.1","Мероприятие 1"]
[null,"1.2","Мероприятие 2"]
[null,"…","…"]
[null,"Итого по I разделу",null,null,null,null,null,"х","х","х","х","х","х","х","х"]
[null,"II раздел. Мероприятия по реконструкции "]
[null,"2.1","Мероприятие 1"]
[null,"2.2","Мероприятие 2"]
[null,"…","…"]
[null,"Итого по II разделу",null,null,null,null,null,"х","х","х","х","х","х","х","х"]
[null,"III раздел.  Иные мероприятия, направленные на совершенствование организации производства"]
[null,"3.1","Мероприятие 1"]
[null,"3.2","Мероприятие 2"]
[null,"…","…"]
[null,"Итого по III разделу",null,null,null,null,null,"х","х","х","х","х","х","х","х"]
[null,"IV раздел. Мероприятия по энергосбережению и повышению энергетической эффективности (в соответствии с Программой энергосбережения и повышения энергоэффективности)"]
[null,"4.1","Мероприятие 1"]
[null,"4.2","Мероприятие 2"]
[null,"…","…"]
[null,"Итого по IV разделу",null,null,null,null,null,"х","х","х","х","х","х","х","х"]
[]
[]
[null," *  Согласуется руководителем Арендодателя в случае, если данное требование предусмотрено договорами аренды"]
[]
[null,null,"Должность руководителя, подпись",null,"Фамилия, имя, отчество"]
[]
[null,null,null,"                             "]
[null,null,"Должность исполнителя, подпись",null,"Фамилия, имя, отчество"]

{"sheet":"План мероприятий 2020 год","index":18,"n_rows":49,"n_cols":12,"rows_kept":49,"cut":false,"hidden":false,"merged":[[48,4,48,5],[1,1,1,2],[2,1,2,3],[5,1,5,2],[14,1,18,1],[14,2,18,2],[14,3,18,3],[14,4,18,4],[11,1,11,11],[35,1,35,4],[36,1,36,11],[40,1,40,4],[41,1,41,4],[21,1,21,11],[25,1,25,4],[45,4,45,5],[31,1,31,11],[16,7,17,8],[20,1,20,11],[14,6,18,6],[14,5,18,5],[14,7,15,8],[14,9,18,9],[14,10,18,10],[2,9,2,11],[5,9,5,10],[14,11,18,11],[26,1,26,11],[30,1,30,4]]}
[null,null,null,null,null,null,null,null,null,null,null,"Приложение 2"]
[null,"Согласовано:",null,null,null,null,null,null,null,null,null,"Таблица 2.3"]
[null,"Глава администрации МО",null,null,null,null,null,null,null,"Руководитель "]
[]
[]
[null,"ФИО",null,"подпись",null,null,null,null,null,"ФИО",null,"подпись"]
[]
[null,"\"           \"","                                    2019 год",null,null,null,null,null,null,"\"           \"","                                    2016 год","2019 год"]
[]
[null,"МП",null,null,null,null,null,null,"МП"]
[]
[null,"План мероприятий по повышению эффективности деятельности и энергосбережению на 2020 год"]
[]
[]
[null,"№ п/п","Наименование мероприятия","Инвентарный номер и адрес объекта","Стадии технологического процесса","Затраты на реализацию мероприятий (тыс.руб.без НДС)","Источники финансирования","Объем работ в натуральных показателях",null,"Вид ремонта","Исполнитель работ (наименование организации, № и дата договора)","Примечание"]
[]
[null,null,null,null,null,null,null,"план"]
[]
[null,null,null,null,null,null,null,"Ед. изм.","Значение (количество)"]
[null,1,2,3,4,5,"6",7,8,9,10,11]
[]
[null,"I раздел. Мероприятия по ремонту (капитальный ,текущий и др)"]
[null,"1.1","Мероприятие 1"]
[null,"1.2","Мероприятие 2"]
[null,"…","…"]
[null,"Итого по I разделу",null,null,null,null,"х","х","х","х","х","х"]
[null,"II раздел. Мероприятия по реконструкции "]
[null,"2.1","Мероприятие 1"]
[null,"2.2","Мероприятие 2"]
[null,"…","…"]
[null,"Итого по II разделу",null,null,null,null,"х","х","х","х","х","х"]
[null,"III раздел.  Иные мероприятия, направленные на совершенствование организации производства"]
[null,"3.1","Мероприятие 1"]
[null,"3.2","Мероприятие 2"]
[null,"…","…"]
[null,"Итого по III разделу",null,null,null,null,"х","х","х","х","х","х"]
[null,"IV раздел. Мероприятия по энергосбережению и повышению энергетической эффективности (в соответствии с Программой энергосбережения и повышения энергоэффективности)"]
[null,"4.1","Мероприятие 1"]
[null,"4.2","Мероприятие 2"]
[null,"…","…"]
[null,"Итого по IV разделу",null,null,null,null,"х","х","х","х","х","х"]
[]
[]
[null," *  Согласуется руководителем Арендодателя в случае, если данное требование предусмотрено договорами аренды"]
[]
[null,null,"Должность руководителя, подпись",null,"Фамилия, имя, отчество"]
[]
[null,null,null,"                             "]
[null,null,"Должность исполнителя, подпись",null,"Фамилия, имя, отчество"]

{"sheet":"План мероприятий 2021 год ","index":19,"n_rows":49,"n_cols":12,"rows_kept":49,"cut":false,"hidden":false,"merged":[[1,1,1,2],[2,1,2,3],[5,1,5,2],[2,9,2,11],[5,9,5,10],[11,1,11,11],[14,1,18,1],[14,2,18,2],[14,3,18,3],[14,4,18,4],[14,5,15,5],[14,6,18,6],[14,7,15,8],[14,9,18,9],[14,10,18,10],[35,1,35,4],[14,11,18,11],[16,5,18,5],[16,7,17,8],[20,1,20,11],[21,1,21,11],[25,1,25,4],[26,1,26,11],[30,1,30,4],[31,1,31,11],[36,1,36,11],[40,1,40,4],[41,1,41,4],[45,4,45,5],[48,4,48,5]]}
[null,null,null,null,null,null,null,null,null,null,null,"Приложение 2"]
[null,"Согласовано:",null,null,null,null,null,null,null,null,null,"Таблица 2.4"]
[null,"Глава администрации МО",null,null,null,null,null,null,null,"Руководитель "]
[]
[]
[null,"ФИО",null,"подпись",null,null,null,null,null,"ФИО",null,"подпись"]
[]
[null,"\"           \"","                                    2019 год",null,null,null,null,null,null,"\"           \"","                                    2016 год","2019 год"]
[]
[null,"МП",null,null,null,null,null,null,"МП"]
[]
[null,"План мероприятий по повышению эффективности деятельности и энергосбережению на 2021 год"]
[]
[]
[null,"№ п/п","Наименование мероприятия","Инвентарный номер и адрес объекта","Стадии технологического процесса","Затраты на реализацию мероприятий (тыс.руб.без НДС)","Источники финансирования","Объем работ в натуральных показателях",null,"Вид ремонта","Исполнитель работ (наименование организации, № и дата договора)","Примечание"]
[]
[null,null,null,null,null,"план",null,"план"]
[]
[null,null,null,null,null,null,null,"Ед. изм.","Значение (количество)"]
[null,1,2,3,4,5,"6",7,8,9,10,11]
[]
[null,"I раздел. Мероприятия по ремонту (капитальный ,текущий и др)"]
[null,"1.1","Мероприятие 1"]
[null,"1.2","Мероприятие 2"]
[null,"…","…"]
[null,"Итого по I разделу",null,null,null,null,"х","х","х","х","х","х"]
[null,"II раздел. Мероприятия по реконструкции "]
[null,"2.1","Мероприятие 1"]
[null,"2.2","Мероприятие 2"]
[null,"…","…"]
[null,"Итого по II разделу",null,null,null,null,"х","х","х","х","х","х"]
[null,"III раздел.  Иные мероприятия, направленные на совершенствование организации производства"]
[null,"3.1","Мероприятие 1"]
[null,"3.2","Мероприятие 2"]
[null,"…","…"]
[null,"Итого по III разделу",null,null,null,null,"х","х","х","х","х","х"]
[null,"IV раздел. Мероприятия по энергосбережению и повышению энергетической эффективности (в соответствии с Программой энергосбережения и повышения энергоэффективности)"]
[null,"4.1","Мероприятие 1"]
[null,"4.2","Мероприятие 2"]
[null,"…","…"]
[null,"Итого по IV разделу",null,null,null,null,"х","х","х","х","х","х"]
[]
[]
[null," *  Согласуется руководителем Арендодателя в случае, если данное требование предусмотрено договорами аренды"]
[]
[null,null,"Должность руководителя, подпись",null,"Фамилия, имя, отчество"]
[]
[null,null,null,"                             "]
[null,null,"Должность исполнителя, подпись",null,"Фамилия, имя, отчество"]

{"sheet":"План мероприятий 2022 год","index":20,"n_rows":49,"n_cols":13,"rows_kept":49,"cut":false,"hidden":false,"merged":[[1,1,1,2],[2,1,2,3],[5,1,5,2],[5,10,5,11],[2,10,2,12],[11,1,11,11],[14,1,18,1],[14,2,18,2],[14,3,18,3],[14,4,18,4],[14,6,18,6],[14,7,15,8],[14,9,18,9],[14,10,18,10],[35,1,35,4],[14,11,18,11],[16,7,17,8],[20,1,20,11],[21,1,21,11],[25,1,25,4],[26,1,26,11],[30,1,30,4],[31,1,31,11],[14,5,18,5],[36,1,36,11],[40,1,40,4],[41,1,41,4],[45,4,45,5],[48,4,48,5]]}
[null,null,null,null,null,null,null,null,null,null,null,"Приложение 2"]
[null,"Согласовано:",null,null,null,null,null,null,null,null,null,"Таблица 2.5"]
[null,"Глава администрации МО",null,null,null,null,null,null,null,null,"Руководитель "]
[]
[]
[null,"ФИО",null,"подпись",null,null,null,null,null,null,"ФИО",null,"подпись"]
[]
[null,"\"           \"","                                    2019 год",null,null,null,null,null,null,null,"\"           \"","                                    2016 год","2019 год"]
[]
[null,"МП",null,null,null,null,null,null,null,"МП"]
[]
[null,"План мероприятий по повышению эффективности деятельности и энергосбережению на 2022 год"]
[]
[]
[null,"№ п/п","Наименование мероприятия","Инвентарный номер и адрес объекта","Стадии технологического процесса","Затраты на реализацию мероприятий (тыс.руб.без НДС)","Источники финансирования","Объем работ в натуральных показателях",null,"Вид ремонта","Исполнитель работ (наименование организации, № и дата договора)","Примечание"]
[]
[null,null,null,null,null,null,null,"план"]
[]
[null,null,null,null,null,null,null,"Ед. изм.","Значение (количество)"]
[null,1,2,3,4,5,"6",7,8,9,10,11]
[]
[null,"I раздел. Мероприятия по ремонту (капитальный ,текущий и др)"]
[null,"1.1","Мероприятие 1"]
[null,"1.2","Мероприятие 2"]
[null,"…","…"]
[null,"Итого по I разделу",null,null,null,null,"х","х","х","х","х","х"]
[null,"II раздел. Мероприятия по реконструкции "]
[null,"2.1","Мероприятие 1"]
[null,"2.2","Мероприятие 2"]
[null,"…","…"]
[null,"Итого по II разделу",null,null,null,null,"х","х","х","х","х","х"]
[null,"III раздел.  Иные мероприятия, направленные на совершенствование организации производства"]
[null,"3.1","Мероприятие 1"]
[null,"3.2","Мероприятие 2"]
[null,"…","…"]
[null,"Итого по III разделу",null,null,null,null,"х","х","х","х","х","х"]
[null,"IV раздел. Мероприятия по энергосбережению и повышению энергетической эффективности (в соответствии с Программой энергосбережения и повышения энергоэффективности)"]
[null,"4.1","Мероприятие 1"]
[null,"4.2","Мероприятие 2"]
[null,"…","…"]
[null,"Итого по IV разделу",null,null,null,null,"х","х","х","х","х","х"]
[]
[]
[null," *  Согласуется руководителем Арендодателя в случае, если данное требование предусмотрено договорами аренды"]
[]
[null,null,"Должность руководителя, подпись",null,"Фамилия, имя, отчество"]
[]
[null,null,null,"                             "]
[null,null,"Должность исполнителя, подпись",null,"Фамилия, имя, отчество"]

{"sheet":"План мероприятий 2023","index":21,"n_rows":50,"n_cols":12,"rows_kept":50,"cut":false,"hidden":false,"merged":[[49,4,49,5],[36,1,36,4],[15,11,19,11],[17,7,18,8],[21,1,21,11],[22,1,22,11],[26,1,26,4],[27,1,27,11],[31,1,31,4],[32,1,32,11],[15,5,19,5],[15,1,19,1],[37,1,37,11],[41,1,41,4],[42,1,42,4],[46,4,46,5],[6,9,6,10],[1,1,1,2],[2,1,2,3],[5,1,5,2],[3,9,3,11],[12,1,12,11],[15,7,16,8],[15,9,19,9],[15,10,19,10],[15,2,19,2],[15,3,19,3],[15,4,19,4],[15,6,19,6]]}
[null,null,null,null,null,null,null,null,null,null,null,"Приложение 2"]
[null,"Согласовано:",null,null,null,null,null,null,null,null,null,"Таблица 2.6"]
[null,"Глава администрации МО"]
[null,null,null,null,null,null,null,null,null,"Руководитель "]
[]
[null,"ФИО",null,"подпись"]
[null,null,null,null,null,null,null,null,null,"ФИО",null,"подпись"]
[null,"\"           \"","                                    2019 год"]
[null,null,null,null,null,null,null,null,null,"\"           \"","                                    2016 год","2019 год"]
[null,"МП",null,null,null,null,null,null,"МП"]
[]
[]
[null,"План мероприятий по повышению эффективности деятельности и энергосбережению на 2023 год"]
[]
[]
[null,"№ п/п","Наименование мероприятия","Инвентарный номер и адрес объекта","Стадии технологического процесса","Затраты на реализацию мероприятий (тыс.руб.без НДС)","Источники финансирования","Объем работ в натуральных показателях",null,"Вид ремонта","Исполнитель работ (наименование организации, № и дата договора)","Примечание"]
[]
[null,null,null,null,null,null,null,"план"]
[]
[null,null,null,null,null,null,null,"Ед. изм.","Значение (количество)"]
[null,1,2,3,4,5,"6",7,8,9,10,11]
[]
[null,"I раздел. Мероприятия по ремонту (капитальный ,текущий и др)"]
[null,"1.1","Мероприятие 1"]
[null,"1.2","Мероприятие 2"]
[null,"…","…"]
[null,"Итого по I разделу",null,null,null,null,"х","х","х","х","х","х"]
[null,"II раздел. Мероприятия по реконструкции "]
[null,"2.1","Мероприятие 1"]
[null,"2.2","Мероприятие 2"]
[null,"…","…"]
[null,"Итого по II разделу",null,null,null,null,"х","х","х","х","х","х"]
[null,"III раздел.  Иные мероприятия, направленные на совершенствование организации производства"]
[null,"3.1","Мероприятие 1"]
[null,"3.2","Мероприятие 2"]
[null,"…","…"]
[null,"Итого по III разделу",null,null,null,null,"х","х","х","х","х","х"]
[null,"IV раздел. Мероприятия по энергосбережению и повышению энергетической эффективности (в соответствии с Программой энергосбережения и повышения энергоэффективности)"]
[null,"4.1","Мероприятие 1"]
[null,"4.2","Мероприятие 2"]
[null,"…","…"]
[null,"Итого по IV разделу",null,null,null,null,"х","х","х","х","х","х"]
[]
[]
[null," *  Согласуется руководителем Арендодателя в случае, если данное требование предусмотрено договорами аренды"]
[]
[null,null,"Должность руководителя, подпись",null,"Фамилия, имя, отчество"]
[]
[null,null,null,"                             "]
[null,null,"Должность исполнителя, подпись",null,"Фамилия, имя, отчество"]

{"sheet":"План мероприятий 2024","index":22,"n_rows":49,"n_cols":12,"rows_kept":49,"cut":false,"hidden":false,"merged":[[1,1,1,2],[2,1,2,3],[5,1,5,2],[2,9,2,11],[5,9,5,10],[11,1,11,11],[14,1,18,1],[14,2,18,2],[14,3,18,3],[14,4,18,4],[14,5,15,5],[14,6,18,6],[14,7,15,8],[14,9,18,9],[14,10,18,10],[35,1,35,4],[14,11,18,11],[16,5,18,5],[16,7,17,8],[20,1,20,11],[21,1,21,11],[25,1,25,4],[26,1,26,11],[30,1,30,4],[31,1,31,11],[36,1,36,11],[40,1,40,4],[41,1,41,4],[45,4,45,5],[48,4,48,5]]}
[null,null,null,null,null,null,null,null,null,null,null,"Приложение 2"]
[null,"Согласовано:",null,null,null,null,null,null,null,null,null,"Таблица 2.7"]
[null,"Глава администрации МО",null,null,null,null,null,null,null,"Руководитель "]
[]
[]
[null,"ФИО",null,"подпись",null,null,null,null,null,"ФИО",null,"подпись"]
[]
[null,"\"           \"","                                    2019 год",null,null,null,null,null,null,"\"           \"","                                    2016 год","2019 год"]
[null,null,null,null,null,null,null,null,"МП"]
[null,"МП"]
[]
[null,"План мероприятий по повышению эффективности деятельности и энергосбережению на 2024 год"]
[]
[]
[null,"№ п/п","Наименование мероприятия","Инвентарный номер и адрес объекта","Стадии технологического процесса","Затраты на реализацию мероприятий (тыс.руб.без НДС)","Источники финансирования","Объем работ в натуральных показателях",null,"Вид ремонта","Исполнитель работ (наименование организации, № и дата договора)","Примечание"]
[]
[null,null,null,null,null,"план",null,"план"]
[]
[null,null,null,null,null,null,null,"Ед. изм.","Значение (количество)"]
[null,1,2,3,4,5,"6",7,8,9,10,11]
[]
[null,"I раздел. Мероприятия по ремонту (капитальный ,текущий и др)"]
[null,"1.1","Мероприятие 1"]
[null,"1.2","Мероприятие 2"]
[null,"…","…"]
[null,"Итого по I разделу",null,null,null,null,"х","х","х","х","х","х"]
[null,"II раздел. Мероприятия по реконструкции "]
[null,"2.1","Мероприятие 1"]
[null,"2.2","Мероприятие 2"]
[null,"…","…"]
[null,"Итого по II разделу",null,null,null,null,"х","х","х","х","х","х"]
[null,"III раздел.  Иные мероприятия, направленные на совершенствование организации производства"]
[null,"3.1","Мероприятие 1"]
[null,"3.2","Мероприятие 2"]
[null,"…","…"]
[null,"Итого по III разделу",null,null,null,null,"х","х","х","х","х","х"]
[null,"IV раздел. Мероприятия по энергосбережению и повышению энергетической эффективности (в соответствии с Программой энергосбережения и повышения энергоэффективности)"]
[null,"4.1","Мероприятие 1"]
[null,"4.2","Мероприятие 2"]
[null,"…","…"]
[null,"Итого по IV разделу",null,null,null,null,"х","х","х","х","х","х"]
[]
[]
[null," *  Согласуется руководителем Арендодателя в случае, если данное требование предусмотрено договорами аренды"]
[]
[null,null,"Должность руководителя, подпись",null,"Фамилия, имя, отчество"]
[]
[null,null,null,"                             "]
[null,null,"Должность исполнителя, подпись",null,"Фамилия, имя, отчество"]